fUST/lending_fUST_20260130
["ID","MTS","AMOUNT","RATE_DAILY","PERIOD"]
[404000329,1769706043432,-500.0,9.355e-05,2]
[404000331,1769706043492,-500.0,9.355e-05,2]
[404000346,1769706047127,-8300.1361458,9.356e-05,2]
[404000347,1769706047155,-10000.01,9.356e-05,2]
[404000348,1769706047238,-1000.0,9.262e-05,2]
[404000349,1769706047308,-983.6877205,9.356e-05,2]
[404000350,1769706047386,-3967.375441,9.356e-05,2]
[404000351,1769706047513,-2065.259118,9.356e-05,2]
[404000352,1769706055756,-151.0,0.00010072,2]
[404000618,1769706068669,5000.0,0.00010072,2]
[404000693,1769706086819,-5000.0,0.00010072,2]
[404000695,1769706091585,0.01,0.00010072,2]
[404000696,1769706091610,4999.99,0.00010072,2]
[404000697,1769706099896,5000.0,0.00010072,2]
[404000698,1769706115206,500.0,0.0003465,120]
[404000699,1769706115519,398.08760526,0.0003465,120]
[404000700,1769706123894,5000.0,9.893e-05,2]
[404000701,1769706146595,5000.0,9.893e-05,2]
[404000702,1769706171263,5000.0,9.893e-05,2]
[404000703,1769706193668,5000.0,9.893e-05,2]
[404000704,1769706194052,0.01,9.355e-05,2]
[404000705,1769706194076,499.99,9.355e-05,2]
[404000706,1769706194380,266.05828094,9.355e-05,2]
[404000707,1769706194732,500.0,9.355e-05,2]
[404000708,1769706195037,500.0,9.355e-05,2]
[404000709,1769706195342,500.0,9.355e-05,2]
[404000710,1769706195660,500.0,9.355e-05,2]
[404000711,1769706195956,500.0,9.355e-05,2]
[404000712,1769706196004,500.0,9.355e-05,2]
[404000713,1769706196497,500.0,9.355e-05,2]
[404000714,1769706199200,500.0,9.355e-05,2]
[404000715,1769706199570,500.0,9.355e-05,2]
[404000716,1769706199601,500.0,9.355e-05,2]
[404000717,1769706199817,500.0,9.355e-05,2]
[404000718,1769706199858,500.0,9.355e-05,2]
[404000719,1769706204761,500.0,9.355e-05,2]
[404000720,1769706204790,500.0,9.355e-05,2]
[404000721,1769706204827,500.0,9.355e-05,2]
[404000722,1769706204876,500.0,9.355e-05,2]
[404000723,1769706204908,157.91800914,9.355e-05,2]
[404000724,1769706204937,500.0,9.355e-05,2]
[404000725,1769706204975,500.0,9.355e-05,2]
[404000726,1769706205006,542.38824446,9.355e-05,2]
[404000727,1769706205042,500.0,9.355e-05,2]
[404000728,1769706205074,500.0,9.355e-05,2]
[404000729,1769706205111,328.65192252,9.355e-05,2]
[404000730,1769706205144,500.0,9.355e-05,2]
[404000731,1769706205176,500.0,9.355e-05,2]
[404000732,1769706205221,500.0,9.355e-05,2]
[404000733,1769706205253,471.05182388,9.355e-05,2]
[404000734,1769706205277,28.94817612,9.355e-05,2]
[404000735,1769706216157,3683.88431594,9.893e-05,2]
[404000736,1769706222156,500.0,9.355e-05,2]
[404000737,1769706222187,500.0,9.355e-05,2]
[404000738,1769706222217,500.0,9.355e-05,2]
[404000739,1769706313689,674.55806153,9.466e-05,2]
[404000740,1769706318221,5000.0,9.893e-05,2]
[404000741,1769706325961,4325.45193847,9.893e-05,2]
[404000742,1769706325983,674.54806153,9.893e-05,2]
[404000765,1769706333962,2675.58464342,9.893e-05,2]
[404000766,1769706341670,5000.0,9.893e-05,2]
[404000786,1769706357387,1649.87729505,9.893e-05,2]
[404000787,1769706357410,3350.12270495,9.893e-05,2]
[404000788,1769706365260,5000.0,9.893e-05,2]
[404000789,1769706374671,1649.88729505,9.893e-05,2]
[404000790,1769706374693,3350.11270495,9.893e-05,2]
[404000793,1769706384757,2864.87672706,9.893e-05,2]
[404000794,1769706392762,3785.02056799,9.893e-05,2]
[404000796,1769706400851,4159.56862952,9.892e-05,2]
[404000925,1769706435478,754.84618484,9.828e-05,2]
[404000992,1769706555864,508.26902366,0.00034768,120]
[404001010,1769706632423,-560.0,9.972e-05,2]
[404001011,1769706632433,-256.64624404,9.972e-05,2]
[404001012,1769706632445,-157.49,0.0001,2]
[404001013,1769706632455,-1200.0,0.00010076,2]
[404001014,1769706632464,-316.71343746,0.00010077,2]
[404001015,1769706632474,-300.0,0.00010077,2]
[404001016,1769706632483,-300.0,0.00010077,2]
[404001017,1769706632492,-300.0,0.00010077,2]
[404001018,1769706632501,-300.0,0.00010077,2]
[404001019,1769706632511,-300.0,0.00010077,2]
[404001020,1769706632521,-7079.12749886,0.00010078,2]
[404001022,1769706632535,-439.64,0.00010078,2]
[404001024,1769706632547,-288.63,0.00010078,2]
[404001155,1769706638618,-810.13659507,0.00010078,2]
[404001156,1769706638631,-424.50976335,0.00010078,2]
[404001157,1769706638643,-957.96614272,0.00010078,2]
[404001158,1769706638652,-350.87977879,0.00010177,2]
[404001159,1769706638662,-536.51688028,0.00010177,2]
[404001160,1769706638671,-633.50646605,0.00010178,2]
[404001161,1769706638682,-8331.65054876,0.00010178,2]
[404001162,1769706638692,-600.0,0.00010483,2]
[404001163,1769706638702,-300.0,0.00010585,2]
[404001164,1769706638712,-300.0,0.00010585,2]
[404001165,1769706638722,-300.0,0.00010585,2]
[404001166,1769706638732,-300.0,0.00010585,2]
[404001167,1769706638741,-300.0,0.00010585,2]
[404001168,1769706638751,-300.0,0.00010585,2]
[404001169,1769706638760,-300.0,0.00010585,2]
[404001170,1769706638769,-300.0,0.00010585,2]
[404001171,1769706638779,-300.0,0.00010585,2]
[404001172,1769706638788,-300.0,0.00010585,2]
[404001173,1769706638798,-300.0,0.00010585,2]
[404001174,1769706638808,-300.0,0.00010585,2]
[404001175,1769706638818,-300.0,0.00010585,2]
[404001176,1769706638828,-300.0,0.00010585,2]
[404001177,1769706638837,-300.0,0.00010585,2]
[404001178,1769706638847,-261.0,0.00011084,2]
[404001179,1769706638857,-287.0,0.00011084,2]
[404001180,1769706638867,-420.0,0.00011084,2]
[404001181,1769706638879,-1348.0,0.00011084,2]
[404001182,1769706638889,-186.73775277,0.00011519,2]
[404001183,1769706638899,-720.0,0.00011531,2]
[404001184,1769706638909,-1871.58459408,0.00011619,2]
[404001185,1769706638922,-3514.48626222,0.00011619,2]
[404001186,1769706638934,-6705.06876849,0.00011619,2]
[404001187,1769706638945,-2698.23224611,0.00011678,2]
[404001188,1769706638954,-177.0,0.00012024,2]
[404001189,1769706638964,-966.74240886,0.00012057,2]
[404001190,1769706638975,-587.0,0.00012192,2]
[404001191,1769706638985,-18066.102658,0.00012207,2]
[404001192,1769706638995,-3019.38473937,0.00012362,2]
[404001193,1769706639005,-9755.22107826,0.0001245,2]
[404001194,1769706639016,-570.59,0.00012583,2]
[404001195,1769706639026,-864.0,0.00012584,2]
[404001196,1769706639035,-173.0,0.00012584,2]
[404001197,1769706639045,-173.0,0.00012584,2]
[404001198,1769706639055,-173.0,0.00012584,2]
[404001199,1769706639065,-173.0,0.00012584,2]
[404001200,1769706639075,-173.0,0.00012584,2]
[404001201,1769706639085,-173.0,0.00012584,2]
[404001202,1769706639095,-500.0,0.00012584,2]
[404001203,1769706639104,-151.0,0.00012675,2]
[404001204,1769706639114,-30000.0,0.00012683,2]
[404001205,1769706639124,-1330.24625973,0.00012683,2]
[404001206,1769706639134,-187.78006525,0.00012683,2]
[404001207,1769706639143,-194.72792766,0.00012683,2]
[404001208,1769706639152,-201.93286099,0.00012683,2]
[404001209,1769706639162,-209.40437684,0.00012683,2]
[404001210,1769706639172,-217.15233878,0.00012683,2]
[404001211,1769706639182,-225.18697532,0.00012683,2]
[404001212,1769706639193,-233.51889341,0.00012683,2]
[404001213,1769706639202,-242.15909246,0.00012683,2]
[404001214,1769706639213,-267.30051836,0.00012683,2]
[404001215,1769706639223,-864.0,0.00012684,2]
[404001216,1769706639232,-500.0,0.00012858,2]
[404001217,1769706639242,-3583.19021041,0.00013,2]
[404001218,1769706639255,-500.0,0.00013132,2]
[404001219,1769706639263,-31110.0,0.00013231,2]
[404001220,1769706639273,-500.0,0.00013273,2]
[404001221,1769706639282,-162.28812704,0.00013273,2]
[404001222,1769706639292,-500.0,0.00013273,2]
[404001223,1769706639301,-217.62261144,0.00013273,2]
[404001224,1769706639310,-500.0,0.00013273,2]
[404001225,1769706639319,-500.0,0.00013273,2]
[404001226,1769706639328,-500.0,0.00013273,2]
[404001227,1769706639339,-500.0,0.00013273,2]
[404001228,1769706639348,-500.0,0.00013273,2]
[404001229,1769706639357,-500.0,0.00013273,2]
[404001230,1769706639366,-500.0,0.00013273,2]
[404001231,1769706639375,-549.00671497,0.00013273,2]
[404001232,1769706639385,-500.0,0.00013273,2]
[404001233,1769706639394,-500.0,0.00013273,2]
[404001234,1769706639405,-162.52274592,0.00013273,2]
[404001235,1769706639418,-165.96638872,0.00013273,2]
[404001236,1769706639427,-500.0,0.00013273,2]
[404001237,1769706639437,-500.0,0.00013273,2]
[404001238,1769706639449,-500.0,0.00013273,2]
[404001239,1769706639458,-500.0,0.00013273,2]
[404001240,1769706639468,-402.96126214,0.00013273,2]
[404001241,1769706639478,-500.15361623,0.00013273,2]
[404001242,1769706639487,-500.0,0.00013273,2]
[404001243,1769706639497,-500.0,0.00013273,2]
[404001244,1769706639507,-500.0,0.00013273,2]
[404001245,1769706639516,-159.74515792,0.00013273,2]
[404001246,1769706639526,-500.0,0.00013273,2]
[404001247,1769706639536,-502.31062213,0.00013273,2]
[404001248,1769706639545,-500.0,0.00013273,2]
[404001249,1769706639556,-500.0,0.00013273,2]
[404001250,1769706639566,-500.0,0.00013273,2]
[404001251,1769706639575,-619.456376,0.00013273,2]
[404001252,1769706639584,-172.04906802,0.00013273,2]
[404001253,1769706639594,-233.02595063,0.00013273,2]
[404001254,1769706639603,-500.0,0.00013273,2]
[404001255,1769706639612,-500.0,0.00013273,2]
[404001257,1769706639622,-500.0,0.00013273,2]
[404001259,1769706639631,-500.0,0.00013273,2]
[404001261,1769706639640,-500.0,0.00013273,2]
[404001263,1769706639650,-269.41265799,0.00013273,2]
[404001265,1769706639659,-500.0,0.00013273,2]
[404001267,1769706639668,-500.0,0.00013273,2]
[404001269,1769706639677,-500.0,0.00013273,2]
[404001271,1769706639688,-500.0,0.00013406,2]
[404001273,1769706639698,-823.0,0.0001341,2]
[404001275,1769706639708,-804.73610174,0.00013496,2]
[404001277,1769706639717,-300.0,0.00013673,2]
[404001279,1769706639726,-354.17373629,0.0001368,2]
[404001281,1769706639735,-525.32488563,0.00013698,2]
[404001283,1769706639745,-617.69956601,0.00013698,2]
[404001285,1769706639753,-500.0,0.00013698,2]
[404001287,1769706639762,-500.0,0.00013698,2]
[404001289,1769706639772,-500.0,0.00013698,2]
[404001291,1769706639781,-500.0,0.00013698,2]
[404001293,1769706639791,-500.0,0.00013698,2]
[404001295,1769706639800,-500.0,0.00013698,2]
[404001297,1769706639810,-500.0,0.00013698,2]
[404001299,1769706639819,-500.0,0.00013698,2]
[404001301,1769706639828,-500.0,0.00013698,2]
[404001303,1769706639838,-500.0,0.00013698,2]
[404001305,1769706639847,-1085.25349,0.00013699,2]
[404001307,1769706639857,-314.792435,0.00013699,2]
[404001309,1769706639866,-507.77467851,0.00013699,2]
[404001311,1769706639876,-500.0,0.00013699,2]
[404001313,1769706639885,-291.60725507,0.00013699,2]
[404001315,1769706639896,-500.0,0.00013699,2]
[404001318,1769706639906,-500.0,0.00013699,2]
[404001319,1769706639915,-500.0,0.00013699,2]
[404001321,1769706639924,-500.0,0.00013699,2]
[404001323,1769706639934,-501.76365168,0.00013699,2]
[404001325,1769706639943,-500.75803963,0.00013699,2]
[404001327,1769706639952,-500.0,0.00013699,2]
[404001329,1769706639962,-210.2,0.00013699,2]
[404001331,1769706639973,-500.0,0.00013699,2]
[404001333,1769706639982,-336.4468968,0.00013699,2]
[404001335,1769706639992,-500.0,0.00013699,2]
[404001337,1769706640002,-500.88951472,0.00013699,2]
[404001339,1769706640011,-500.0,0.00013699,2]
[404001341,1769706640022,-500.0,0.00013699,2]
[404001343,1769706640032,-386.16038037,0.00013699,2]
[404001345,1769706640041,-502.71899874,0.00013699,2]
[404001347,1769706640051,-10362.65564892,0.00013779,2]
[404001349,1769706640060,-1000.0,0.00013821,2]
[404001351,1769706640069,-500.0,0.00013821,2]
[404001353,1769706640079,-1000.0,0.00013821,2]
[404001355,1769706640088,-500.0,0.00013821,2]
[404001357,1769706640098,-468.87374591,0.00013821,2]
[404001359,1769706640107,-1000.0,0.00013821,2]
[404001361,1769706640116,-1000.0,0.00013821,2]
[404001363,1769706640125,-1000.0,0.00013821,2]
[404001365,1769706640134,-1000.0,0.00013821,2]
[404001367,1769706640146,-1000.0,0.00013821,2]
[404001370,1769706640158,-1000.92401321,0.00013821,2]
[404001372,1769706640169,-1000.0,0.00013821,2]
[404001374,1769706640180,-1000.0,0.00013821,2]
[404001376,1769706640191,-1000.0,0.00013821,2]
[404001379,1769706640203,-500.0,0.00013821,2]
[404001381,1769706640214,-1000.0,0.00013821,2]
[404001383,1769706640225,-7826.7,0.00013853,2]
[404001385,1769706640236,-1000.0,0.00013953,2]
[404001387,1769706640246,-6071.02255374,0.00013984,2]
[404001389,1769706640259,-204.0,0.00014024,2]
[404001391,1769706640270,-756.98548849,0.00014045,2]
[404001394,1769706640281,-600.0,0.00014221,2]
[404001396,1769706640292,-1000.0,0.00014247,2]
[404001398,1769706640304,-1000.0,0.00014247,2]
[404001400,1769706640315,-1000.0,0.00014247,2]
[404001403,1769706640325,-504.15902707,0.00014247,2]
[404001406,1769706640336,-1000.0,0.00014247,2]
[404001408,1769706640347,-1000.0,0.00014247,2]
[404001410,1769706640358,-1000.0,0.00014247,2]
[404001412,1769706640368,-1000.0,0.00014247,2]
[404001414,1769706640379,-1000.0,0.00014247,2]
[404001416,1769706640390,-1500.0,0.00014368,2]
[404001418,1769706640401,-196.99444629,0.00014368,2]
[404001421,1769706640412,-517.09664357,0.00014368,2]
[404001423,1769706640423,-1500.0,0.00014368,2]
[404001425,1769706640434,-1500.0,0.00014368,2]
[404001427,1769706640445,-1500.0,0.00014368,2]
[404001429,1769706640456,-1502.6154559,0.00014368,2]
[404001432,1769706640468,-1500.0,0.00014368,2]
[404001434,1769706640479,-1500.0,0.00014368,2]
[404001436,1769706640489,-160.0,0.00014583,2]
[404001438,1769706640500,-1041.66666667,0.00014583,2]
[404001440,1769706640510,-500.0,0.00014585,2]
[404001442,1769706640521,-301.22158413,0.00014656,2]
[404001445,1769706640531,-1152.0,0.0001475,2]
[404001447,1769706640542,-300.0,0.00014768,2]
[404001449,1769706640552,-1065.0903288,0.00014795,2]
[404001451,1769706640563,-1558.74711496,0.00014795,2]
[404001453,1769706640572,-77.62972423,0.00014795,2]
[404001463,1769706640666,-1422.37027577,0.00014795,2]
[404001465,1769706640675,-501.10012348,0.00014795,2]
[404001467,1769706640686,-1500.0,0.00014795,2]
[404001470,1769706640698,-1500.0,0.00014795,2]
[404001472,1769706640709,-729.44030412,0.00014896,2]
[404001476,1769706640762,-500.0,0.00013698,2]
[404001477,1769706640774,-500.0,0.00013698,2]
[404001478,1769706640785,-500.0,0.00013698,2]
[404001479,1769706640795,-500.0,0.00013698,2]
[404001480,1769706640806,-500.0,0.00013698,2]
[404001481,1769706640817,-500.0,0.00013698,2]
[404001482,1769706640828,-1299.799,0.00014896,2]
[404001483,1769706640846,-500.0,0.00013835,2]
[404001484,1769706640857,-4764.37635947,0.00014896,2]
[404001485,1769706640866,-167.4454438,0.00014916,2]
[404001486,1769706640876,-2000.0,0.00014916,2]
[404001487,1769706640885,-1084.57819673,0.00014916,2]
[404001488,1769706640896,-450.16819671,0.00014916,2]
[404001658,1769706644869,-465.25360656,0.00014916,2]
[404001659,1769706644880,-2000.0,0.00014916,2]
[404001660,1769706644891,-2000.0,0.00014916,2]
[404001662,1769706644902,-378.91088129,0.00014916,2]
[404001663,1769706644915,-1621.08911871,0.00014916,2]
[404001665,1769706644927,-175.922181,0.00015068,2]
[404001666,1769706644939,-500.0,0.0001513,2]
[404001667,1769706644952,-2000.0,0.00015342,2]
[404001668,1769706644963,-2000.0,0.00015342,2]
[404001669,1769706644973,-1000.0,0.00015348,2]
[404001670,1769706644983,-244.0,0.00015348,2]
[404001671,1769706644993,-599.32248399,0.000154,2]
[404001672,1769706645004,-699.42511273,0.00015464,2]
[404001673,1769706645015,-1800.57488727,0.00015464,2]
[404001674,1769706645026,-2500.0,0.00015464,2]
[404001675,1769706645037,-1500.0,0.00015464,2]
[404001676,1769706645048,-500.0,0.00015464,2]
[404001677,1769706645059,-544.76043412,0.00015639,2]
[404001678,1769706645069,-3994.30955697,0.0001564,2]
[404001712,1769706646902,-1005.69044303,0.0001564,2]
[404001713,1769706646913,-500.0,0.00015678,2]
[404001714,1769706646923,-389.45765406,0.00015679,2]
[404001715,1769706646956,-110.54234594,0.00015679,2]
[404001716,1769706646967,-500.0,0.00015679,2]
[404001717,1769706646977,-2023.45765406,0.0001589,2]
[404001737,1769706719377,151.0,0.00034768,120]
[404001738,1769706820841,170.142497,0.00014563,120]
[404001739,1769706830061,500.0,0.00034765,120]
[404001740,1769706830292,500.0,0.00034765,120]
[404001741,1769706830520,500.0,0.00034765,120]
[404001742,1769706830804,500.0,0.00034765,120]
[404001743,1769706831033,546.61716392,0.00034765,120]
[404001746,1769707302968,426.004,9.877e-05,2]
[404001747,1769707303045,178.78731552,9.877e-05,2]
[404001748,1769707358969,4480.80387012,9.892e-05,2]
[404001749,1769707358993,519.19612988,9.892e-05,2]
[404001750,1769707381736,5000.0,9.892e-05,2]
[404001751,1769707404037,4480.81387012,9.892e-05,2]
[404001752,1769707404060,519.18612988,9.892e-05,2]
[404001753,1769707406485,500.0,0.00034764,120]
[404001754,1769707406723,500.0,0.00034764,120]
[404001755,1769707406964,500.0,0.00034764,120]
[404001756,1769707407222,500.0,0.00034764,120]
[404001757,1769707407445,500.0,0.00034764,120]
[404001758,1769707407714,500.0,0.00034764,120]
[404001759,1769707407973,500.0,0.00034764,120]
[404001760,1769707408943,500.0,0.00034764,120]
[404001761,1769707409189,500.0,0.00034764,120]
[404001762,1769707409516,500.0,0.00034764,120]
[404001763,1769707409780,500.0,0.00034764,120]
[404001764,1769707410031,500.0,0.00034764,120]
[404001765,1769707410299,500.0,0.00034764,120]
[404001766,1769707410550,500.0,0.00034764,120]
[404001767,1769707410789,500.0,0.00034764,120]
[404001768,1769707411036,500.0,0.00034764,120]
[404001769,1769707411285,500.0,0.00034764,120]
[404001770,1769707411516,500.0,0.00034764,120]
[404001771,1769707411758,500.0,0.00034764,120]
[404001772,1769707412007,537.51597649,0.00034764,120]
[404001773,1769707427084,5000.0,9.892e-05,2]
[404001774,1769707442335,300.43920478,0.0003477,120]
[404001775,1769707713501,-300.0,9.975e-05,2]
[404001776,1769707713529,-300.0,9.975e-05,2]
[404001777,1769707713558,-320.78402809,9.976e-05,2]
[404001778,1769707713590,-289.60185162,9.976e-05,2]
[404001779,1769707713622,-500.0,9.976e-05,2]
[404001780,1769707713662,-500.0,9.976e-05,2]
[404001781,1769707713699,-500.0,9.976e-05,2]
[404001782,1769707713730,-500.0,9.976e-05,2]
[404001783,1769707713762,-500.0,9.976e-05,2]
[404001784,1769707713792,-500.0,9.976e-05,2]
[404001785,1769707713822,-500.0,9.976e-05,2]
[404001786,1769707713852,-79.23824058,9.976e-05,2]
[404001787,1769707715043,-420.76175942,9.976e-05,2]
[404001788,1769707715074,-500.0,9.976e-05,2]
[404001789,1769707715104,-367.00095126,9.976e-05,2]
[404001790,1769707715139,-500.0,9.976e-05,2]
[404001791,1769707715168,-500.0,9.976e-05,2]
[404001792,1769707715199,-500.0,9.976e-05,2]
[404001793,1769707715228,-500.0,9.976e-05,2]
[404001794,1769707715256,-500.0,9.976e-05,2]
[404001795,1769707715286,-500.0,9.976e-05,2]
[404001796,1769707715316,-500.0,9.976e-05,2]
[404001797,1769707715440,-500.0,9.976e-05,2]
[404001798,1769707715470,-500.0,9.976e-05,2]
[404001799,1769707715499,-500.0,9.976e-05,2]
[404001800,1769707715527,-500.0,9.976e-05,2]
[404001801,1769707715556,-500.0,9.976e-05,2]
[404001802,1769707715587,-500.0,9.976e-05,2]
[404001803,1769707715616,-500.0,9.976e-05,2]
[404001804,1769707715646,-500.0,9.976e-05,2]
[404001805,1769707715678,-500.0,9.976e-05,2]
[404001806,1769707715707,-300.0,9.977e-05,2]
[404001807,1769707715736,-100.01,9.977e-05,2]
[404001808,1769707715998,-199.99,9.977e-05,2]
[404001809,1769707716027,-300.0,9.977e-05,2]
[404001810,1769707716056,-1200.0,9.977e-05,2]
[404001811,1769707716848,-4078.24912655,9.977e-05,2]
[404001812,1769707718829,-10000.01,9.977e-05,2]
[404001813,1769707718957,-1793.80801766,9.977e-05,2]
[404001814,1769707718993,-6412.39396468,9.978e-05,2]
[404001815,1769707719070,-10000.01,9.978e-05,2]
[404001816,1769707719184,-10000.01,9.978e-05,2]
[404001818,1769707722962,500.0,0.0003477,120]
[404001819,1769707724935,-10000.01,9.978e-05,2]
[404001820,1769707725048,-10000.01,9.978e-05,2]
[404001823,1769707768621,-300.0,9.975e-05,2]
[404001824,1769707768649,-191.48062914,9.976e-05,2]
[404001825,1769707768679,-500.0,9.976e-05,2]
[404001826,1769707768709,-500.0,9.976e-05,2]
[404001827,1769707768737,-500.0,9.976e-05,2]
[404001828,1769707768764,-338.04313827,9.976e-05,2]
[404001829,1769707768860,-5340.96246518,9.978e-05,2]
[404001830,1769707774737,-10000.01,9.978e-05,2]
[404001831,1769707798135,5000.0,9.841e-05,2]
[404001832,1769707821463,-300.0,9.977e-05,2]
[404001833,1769707821495,-1200.0,9.977e-05,2]
[404001834,1769707821517,-300.0,9.978e-05,2]
[404001835,1769707821529,-260.0,9.978e-05,2]
[404001836,1769707821540,-940.0,9.978e-05,2]
[404001837,1769707821552,-261.96838571,9.978e-05,2]
[404001875,1769707831633,-678.08346952,9.978e-05,2]
[404001877,1769707831646,-523.45830219,9.978e-05,2]
[404001879,1769707831659,-17565.52742996,9.978e-05,2]
[404001881,1769707831676,-11221.04947115,9.978e-05,2]
[404001885,1769707831700,-12525.94428295,9.978e-05,2]
[404001886,1769707831712,-526.33414784,9.978e-05,2]
[404001888,1769707831721,-300.0,0.00010279,2]
[404001891,1769707831731,-300.0,0.00010279,2]
[404001893,1769707831741,-300.0,0.00010279,2]
[404001894,1769707831750,-300.0,0.00010279,2]
[404001896,1769707831759,-19.90228468,0.00010279,2]
[404001897,1769707834612,5000.0,9.841e-05,2]
[404001906,1769707837746,-280.09771532,0.00010279,2]
[404001907,1769707837756,-300.0,0.00010279,2]
[404001908,1769707837765,-300.0,0.00010279,2]
[404001909,1769707837775,-300.0,0.00010279,2]
[404001910,1769707837784,-300.0,0.00010279,2]
[404001911,1769707837803,-300.0,0.00010279,2]
[404001912,1769707837814,-300.0,0.00010279,2]
[404001913,1769707837825,-300.0,0.00010279,2]
[404001914,1769707837834,-300.0,0.00010279,2]
[404001915,1769707837843,-149.83019071,0.00010279,2]
[404001916,1769707837857,-150.16980929,0.00010279,2]
[404001917,1769707837867,-300.0,0.00010279,2]
[404001919,1769707837876,-600.0,0.00010279,2]
[404001921,1769707837886,-420.0,0.00010975,2]
[404001922,1769707837895,-151.0,0.00011,2]
[404001924,1769707837905,-151.0,0.00011,2]
[404001926,1769707837914,-482.7792154,0.00011247,2]
[404001928,1769707837924,-194.69738934,0.00011307,2]
[404001929,1769707837937,-525.30261066,0.00011307,2]
[404001930,1769707837948,-460.35015075,0.00011889,2]
[404001931,1769707837959,-302.0,0.00011889,2]
[404001932,1769707837970,-697.87502279,0.00011889,2]
[404001970,1769707840006,-2929.85041502,0.00011889,2]
[404001972,1769707840016,-177.0,0.00011976,2]
[404001974,1769707840026,-587.0,0.00012073,2]
[404001976,1769707840036,-864.0,0.00012437,2]
[404001978,1769707840045,-151.0,0.000128,2]
[404001980,1769707840055,-250.0,0.00012883,2]
[404001982,1769707840064,-218.50816465,0.00013273,2]
[404001984,1769707840074,-536.76797533,0.00013273,2]
[404001986,1769707840083,-167.9297864,0.00013273,2]
[404001988,1769707840093,-549.17716233,0.00013273,2]
[404001990,1769707840102,-500.0,0.00013273,2]
[404001992,1769707840112,-500.0,0.00013273,2]
[404001994,1769707840121,-500.0,0.00013273,2]
[404001996,1769707840130,-500.0,0.00013273,2]
[404001998,1769707840139,-500.0,0.00013273,2]
[404002000,1769707840149,-500.0,0.00013273,2]
[404002002,1769707840158,-500.0,0.00013273,2]
[404002004,1769707840168,-500.0,0.00013273,2]
[404002007,1769707840177,-161.6192891,0.00013273,2]
[404002008,1769707840186,-500.0,0.00013273,2]
[404002010,1769707840195,-316.86005023,0.00013273,2]
[404002012,1769707840204,-500.0,0.00013273,2]
[404002014,1769707840212,-500.0,0.00013273,2]
[404002016,1769707840222,-500.0,0.00013273,2]
[404002018,1769707840231,-500.0,0.00013273,2]
[404002020,1769707840241,-500.0,0.00013273,2]
[404002022,1769707840250,-500.0,0.00013273,2]
[404002024,1769707840259,-500.0,0.00013273,2]
[404002026,1769707840269,-500.0,0.00013273,2]
[404002028,1769707840278,-500.0,0.00013273,2]
[404002030,1769707840287,-500.0,0.00013273,2]
[404002032,1769707840296,-500.0,0.00013273,2]
[404002034,1769707840305,-500.0,0.00013273,2]
[404002036,1769707840314,-500.0,0.00013273,2]
[404002038,1769707840324,-500.0,0.00013273,2]
[404002040,1769707840333,-500.0,0.00013273,2]
[404002042,1769707840342,-500.0,0.00013273,2]
[404002044,1769707840351,-500.0,0.00013273,2]
[404002046,1769707840360,-500.0,0.00013273,2]
[404002048,1769707840370,-500.0,0.00013273,2]
[404002050,1769707840379,-500.0,0.00013273,2]
[404002052,1769707840388,-500.0,0.00013273,2]
[404002054,1769707840397,-158.20894749,0.00013273,2]
[404002056,1769707840407,-326.7114202,0.00013273,2]
[404002058,1769707840416,-205.09849573,0.00013273,2]
[404002060,1769707840425,-648.71726301,0.00013273,2]
[404002061,1769707840434,-500.0,0.00013273,2]